bitfinex-derivatives/quotes_BNBF0:USTF0_20250406
["timestamp","ask_amount","ask_price","bid_price","bid_amount"]
[1743961096195,2.80426749,568.75,567.8,0.3522367]
[1743961096600,1.28410747,568.75,567.8,0.3522367]
[1743961097094,2.34310747,568.76,567.8,0.3522367]
[1743961098000,1.059,568.76,567.8,0.3522367]
[1743961099202,1.059,568.76,567.86,1.30456452]
[1743961099401,1.059,568.76,567.88,0.35218708]
[1743961114616,1.059,568.76,568.02,1.30456452]
[1743961114812,1.059,568.76,568.03,0.35209407]
[1743961116419,1.092,568.77,568.03,0.35209407]
[1743961120041,1.305,568.76,568.03,0.35209407]
[1743961121120,0.892,568.75,568.03,0.35209407]
[1743961123219,1.227,568.74,568.03,0.35209407]
[1743961130136,1.227,568.74,568.09,1.30456452]
[1743961130328,1.227,568.74,568.1,0.35205069]
[1743961131736,1.227,568.74,568.1,1.65661521]
[1743961134437,1.227,568.74,568.14,1.30456452]
[1743961134639,1.227,568.74,568.15,0.35201971]
[1743961137138,1.227,568.74,568.29,1.30456452]
[1743961138243,1.227,568.74,568.3,0.35192679]
[1743961140237,0.892,568.75,568.3,0.35192679]
[1743961141049,1.305,568.76,568.3,0.35192679]
[1743961142643,0.991,568.75,568.3,0.35192679]
[1743961143648,0.846,568.74,568.3,0.35192679]
[1743961144846,0.846,568.74,568.34,1.30456452]
[1743961145074,0.846,568.74,568.35,0.35189583]
[1743961148553,1.173,568.73,568.35,0.35189583]
[1743961150047,1.173,568.73,568.48,1.30456452]
[1743961150454,1.173,568.73,568.48,1.65637988]
[1743961152748,1.173,568.73,568.48,0.35181536]
[1743961157054,1.173,568.73,568.4,1.30456452]
[1743961158364,1.173,568.73,568.34,1.30456452]
[1743961159162,1.21,568.72,568.34,1.30456452]
[1743961161668,1.21,568.72,568.12,0.30598383]
[1743961163467,1.21,568.72,568.05,1.30456452]
[1743961163665,1.21,568.72,568.12,0.30600132]
[1743961164060,1.21,568.72,568.06,0.35207548]
[1743961165673,1.21,568.72,568.07,0.30601477]
[1743961165869,1.21,568.72,568.08,0.35206308]
[1743961170473,0.891,568.71,568.08,0.35206308]
[1743961180286,1.3,568.7,568.08,0.35206308]
[1743961187993,2.072,568.7,568.08,0.35206308]
[1743961190895,3.155,568.7,568.08,0.35206308]
[1743961201694,4.123,568.7,568.08,0.35206308]
[1743961234023,4.123,568.7,568.19,1.30456452]
[1743961234517,4.123,568.7,568.2,0.35198873]
[1743961236018,4.123,568.7,568.24,1.30456452]
[1743961236217,4.123,568.7,568.25,0.35195776]
[1743961247723,4.123,568.7,568.3,1.30456452]
[1743961247923,4.123,568.7,568.31,0.3519206]
[1743961249926,4.123,568.7,568.35,1.30456452]
[1743961252330,4.123,568.7,568.31,0.3519206]
[1743961266043,4.123,568.7,568.33,1.30456452]
[1743961268243,4.123,568.7,568.31,0.3519206]
[1743961272647,4.123,568.7,568.35,1.30456452]
[1743961273448,4.123,568.7,568.35,1.65646035]
[1743961274946,4.123,568.7,568.35,0.35189583]
[1743961282560,4.123,568.7,568.3,1.30456452]
[1743961285253,4.123,568.7,568.18,0.30596769]
[1743961287359,4.123,568.7,568.02,1.30456452]
[1743961287755,4.123,568.7,568.07,0.30604976]
[1743961288064,4.123,568.7,568.02,1.30456452]
[1743961288758,2.80315244,568.69,568.02,1.30456452]
[1743961288954,0.61021936,568.68,568.02,1.30456452]
[1743961289159,1.51921784,568.68,568.02,1.30456452]
[1743961289461,1.89366843,568.68,568.02,1.30456452]
[1743961289760,2.12895167,568.67,568.02,1.30456452]
[1743961290459,1.2839346,568.66,568.02,1.30456452]
[1743961290655,3.41288627,568.66,568.02,1.30456452]
[1743961290856,2.12895167,568.65,568.02,1.30456452]
[1743961291162,1.2839346,568.64,567.7,0.30614669]
[1743961291356,1.2839346,568.63,567.7,0.30614669]
[1743961291558,4.68888627,568.63,567.7,0.30614669]
[1743961291755,2.12895167,568.62,567.7,0.30614669]
[1743961292165,2.1319346,568.61,567.62,1.30456452]
[1743961292361,2.12895167,568.6,567.62,1.30456452]
[1743961292661,1.2839346,568.59,567.62,1.30456452]
[1743961292857,3.41288627,568.59,567.62,1.30456452]
[1743961293061,2.12895167,568.58,567.62,1.30456452]
[1743961293467,1.2839346,568.57,567.62,1.30456452]
[1743961293662,3.41288627,568.57,567.62,1.30456452]
[1743961293865,2.12895167,568.56,567.59,0.30623963]
[1743961294159,1.2839346,568.55,567.59,0.30623963]
[1743961294463,1.2839346,568.55,567.22,1.30456452]
[1743961294464,3.41288627,568.55,567.22,1.30456452]
[1743961294664,3.41288627,568.54,567.23,0.35259065]
[1743961294865,3.41288627,568.54,567.47,0.30633263]
[1743961295060,2.12895167,568.53,567.23,0.35259065]
[1743961295362,1.2839346,568.52,567.23,0.35259065]
[1743961295559,3.41288627,568.52,567.24,0.30631106]
[1743961295759,2.12895167,568.51,567.24,0.30631106]
[1743961296060,1.2839346,568.5,567.25,0.35257822]
[1743961296360,3.41288627,568.5,567.25,0.35257822]
[1743961296590,3.41288627,568.49,567.25,0.35257822]
[1743961296761,2.12895167,568.48,567.25,0.35257822]
[1743961297262,1.2839346,568.47,567.25,0.35257822]
[1743961297462,3.41288627,568.47,567.25,0.35257822]
[1743961297667,2.12895167,568.46,567.25,0.35257822]
[1743961297868,2.80315244,568.46,567.25,0.35257822]
[1743961298069,1.51921784,568.45,567.25,0.35257822]
[1743961298266,1.2839346,568.46,567.25,0.35257822]
[1743961298565,1.2839346,568.54,567.25,0.35257822]
[1743961298764,1.5902551,568.54,567.25,0.35257822]
[1743961299184,1.2839346,568.53,567.25,0.35257822]
[1743961299569,3.39438202,568.53,567.25,0.35257822]
[1743961299769,2.11044742,568.52,567.25,0.35257822]
[1743961300665,1.50557313,568.52,567.25,0.35257822]
[1743961300867,1.2839346,568.51,567.25,0.35257822]
[1743961301166,3.39376007,568.53,567.25,0.35257822]
[1743961301367,2.10935597,568.52,567.25,0.35257822]
[1743961301671,1.2839346,568.51,567.25,0.35257822]
[1743961301971,3.69962725,568.51,567.25,0.35257822]
[1743961302169,3.39329057,568.5,567.25,0.35257822]
[1743961302366,2.10935597,568.49,567.25,0.35257822]
[1743961302674,1.2839346,568.48,567.25,0.35257822]
[1743961302870,3.39329057,568.48,567.25,0.35257822]
[1743961303070,1.50557313,568.47,567.25,0.35257822]
[1743961303770,0.30633668,568.51,567.25,0.35257822]
[1743961304969,2.78950773,568.54,567.25,0.35257822]
[1743961305273,1.50557313,568.53,567.25,0.35257822]
[1743961306275,1.2839346,568.54,567.25,0.35257822]
[1743961306573,0.35177205,568.55,567.25,0.35257822]
[1743961307674,1.2839346,568.54,567.25,0.35257822]
[1743961308075,1.2839346,568.53,567.25,0.35257822]
[1743961308268,3.39218862,568.53,567.25,0.35257822]
[1743961308472,3.39218862,568.52,567.25,0.35257822]
[1743961308673,2.10825402,568.51,567.25,0.35257822]
[1743961308873,1.2839346,568.5,567.25,0.35257822]
[1743961309073,3.39218862,568.5,567.25,0.35257822]
[1743961309375,2.10825402,568.49,567.25,0.35257822]
[1743961309676,1.105,568.48,567.25,0.35257822]
[1743961309877,2.99161549,568.48,567.25,0.35257822]
[1743961310171,3.39218862,568.47,567.25,0.35257822]
[1743961310471,2.10166598,568.46,567.25,0.35257822]
[1743961310871,2.78289744,568.45,567.25,0.35257822]
[1743961311073,0.60268089,568.44,567.25,0.35257822]
[1743961311272,3.38510231,568.44,567.25,0.35257822]
[1743961311476,2.10116771,568.43,567.25,0.35257822]
[1743961312074,1.2839346,568.42,567.25,0.35257822]
[1743961312373,3.38510231,568.42,567.25,0.35257822]
[1743961312572,3.05816771,568.41,567.25,0.35257822]
[1743961312802,0.60220487,568.4,567.25,0.35257822]
[1743961312973,1.88613947,568.4,567.25,0.35257822]
[1743961313178,1.49896284,568.39,567.25,0.35257822]
[1743961313372,2.10116771,568.39,567.25,0.35257822]
[1743961313576,1.2839346,568.38,567.25,0.35257822]
[1743961314075,2.78289744,568.4,567.25,0.35257822]
[1743961317077,1.2839346,568.4,567.25,0.35257822]
[1743961317278,2.78205899,568.4,567.25,0.35257822]
[1743961317577,1.49812439,568.4,567.25,0.35257822]
[1743961317776,0.957,568.41,567.25,0.35257822]
[1743961322785,0.30636769,568.4,567.25,0.35257822]
[1743961322982,1.59030229,568.4,567.25,0.35257822]
[1743961323187,3.69021275,568.4,567.25,0.35257822]
[1743961323379,2.09991046,568.39,567.25,0.35257822]
[1743961324187,2.78204314,568.38,567.25,0.35257822]
[1743961324391,2.09991046,568.37,567.25,0.35257822]
[1743961324591,1.82180599,568.36,567.25,0.35257822]
[1743961324890,2.42360791,568.35,567.02,0.30647157]
[1743961325088,3.70754251,568.34,567.02,0.30647157]
[1743961325292,2.09991046,568.33,567.02,0.30647157]
[1743961325493,3.70767103,568.32,566.73,1.30456452]
[1743961325688,2.09991046,568.31,566.74,0.3528955]
[1743961325892,2.09991046,568.3,566.77,1.30456452]
[1743961326091,2.42375172,568.29,566.77,1.30456452]
[1743961326288,3.7076826,568.28,566.77,1.30456452]
[1743961326492,2.423748,568.27,566.77,1.30456452]
[1743961326793,2.423748,568.27,566.78,0.30658362]
[1743961326794,2.423748,568.26,566.78,0.30658362]
[1743961326993,2.423748,568.25,566.78,0.30658362]
[1743961327195,2.42375552,568.24,566.78,0.30658362]
[1743961327495,2.42375552,568.23,566.78,0.30658362]
[1743961327695,3.70769012,568.22,566.78,0.30658362]
[1743961327895,2.09991046,568.21,566.78,0.30658362]
[1743961328091,2.42375552,568.2,566.78,0.30658362]
[1743961328296,2.42375552,568.19,566.78,0.30658362]
[1743961328594,2.42375552,568.18,566.78,0.30658362]
[1743961328791,3.70774567,568.17,566.78,0.30658362]
[1743961328991,2.42381107,568.16,566.78,0.30658362]
[1743961329196,1.82200915,568.15,566.78,0.30658362]
[1743961329491,2.78204314,568.14,566.78,0.30658362]
[1743961329696,2.09991046,568.13,566.78,0.30658362]
[1743961329895,1.49810854,568.12,566.78,0.30658362]
[1743961330097,2.09991046,568.12,566.78,0.30658362]
[1743961330392,1.2839346,568.11,566.78,0.30658362]
[1743961330696,3.38384506,568.11,566.78,0.30658362]
[1743961330890,2.78204314,568.1,566.78,0.30658362]
[1743961331092,2.09815896,568.09,566.78,0.30658362]
[1743961331896,1.60774806,568.08,566.78,0.30658362]
[1743961332097,0.32381346,568.07,566.78,0.30658362]
[1743961332297,2.09815896,568.07,566.78,0.30658362]
[1743961332796,1.2839346,568.06,566.78,0.30658362]
[1743961333003,3.38209356,568.06,566.79,0.35286437]
[1743961333194,3.73417524,568.05,566.79,0.35286437]
[1743961333391,2.45024684,568.04,566.79,0.35286437]
[1743961333597,0.35209407,568.03,566.79,0.35286437]
[1743961333796,0.95214449,568.03,566.79,0.35286437]
[1743961334091,1.2839346,568.02,566.79,0.35286437]
[1743961334292,0.35210647,568.01,566.79,0.35286437]
[1743961334493,1.63604107,568.01,566.79,0.35286437]
[1743961334692,3.73420003,568.01,566.79,0.35286437]
[1743961334896,3.38209356,568.0,566.79,0.35286437]
[1743961335094,2.77414545,567.99,566.79,0.35286437]
[1743961335297,0.92391804,567.98,566.79,0.35286437]
[1743961335494,0.32386762,567.97,566.79,0.35286437]
[1743961335694,1.82197616,567.97,566.79,0.35286437]
[1743961335894,1.60780222,567.96,566.79,0.35286437]
[1743961336194,1.49810854,567.95,566.79,0.35286437]
[1743961336399,1.82205774,567.94,566.79,0.35286437]
[1743961336599,0.60005042,567.95,566.79,0.35286437]
[1743961336600,1.82205774,567.93,566.79,0.35286437]
[1743961336799,2.42210816,567.92,566.14,1.30456452]
[1743961337000,2.42210816,567.91,566.54,0.30681337]
[1743961337195,2.42210816,567.9,566.54,0.30681337]
[1743961337400,2.42210816,567.89,566.16,0.35325702]
[1743961337601,0.35219328,567.87,566.16,0.35325702]
[1743961337800,2.42210816,567.86,566.16,0.35325702]
[1743961338003,3.70604276,567.85,566.16,0.35325702]
[1743961338297,3.70604276,567.84,566.16,0.35325702]
[1743961338601,2.42210816,567.83,566.16,0.35325702]
[1743961338803,2.09815896,567.82,566.16,0.35325702]
[1743961339002,2.4223656,567.81,566.16,0.35325702]
[1743961339203,1.2839346,567.84,566.16,0.35325702]
[1743961339204,2.4223656,567.8,566.16,0.35325702]
[1743961339398,2.4223656,567.79,566.16,0.35325702]
[1743961339603,2.4223656,567.78,566.16,0.35325702]
[1743961339800,2.4223656,567.77,566.16,0.35325702]
[1743961340022,3.7063002,567.76,566.16,0.35325702]
[1743961340199,3.38209356,567.75,566.16,0.35325702]
[1743961340404,2.4210186,567.74,566.16,0.35325702]
[1743961340703,2.41231986,567.73,566.16,0.35325702]
[1743961340903,3.37204126,567.72,566.16,0.35325702]
[1743961341105,2.08810666,567.71,566.16,0.35325702]
[1743961341304,1.2839346,567.72,566.16,0.35325702]
[1743961341305,3.69629191,567.7,566.16,0.35325702]
[1743961341506,3.69629191,567.69,566.16,0.35325702]
[1743961341703,2.08810666,567.68,566.16,0.35325702]
[1743961341901,2.0869377,567.67,566.16,0.35325702]
[1743961342115,2.08693538,567.66,566.16,0.35325702]
[1743961342306,3.69512063,567.65,566.16,0.35325702]
[1743961342500,3.69512063,567.64,566.16,0.35325702]
[1743961342807,3.69512063,567.63,566.16,0.35325702]
[1743961343107,3.69512063,567.62,566.16,0.35325702]
[1743961343407,3.69512063,567.61,566.16,0.35325702]
[1743961343708,2.41118603,567.6,566.16,0.35325702]
[1743961343907,3.69512063,567.59,564.95,1.30456452]
[1743961344220,3.69512063,567.58,565.08,0.35393218]
[1743961344404,3.69512063,567.57,565.08,0.35393218]
[1743961344605,2.41118603,567.56,565.08,0.35393218]
[1743961344805,2.41118603,567.55,565.08,0.35393218]
[1743961345003,2.41040106,567.54,565.08,0.35393218]
[1743961345205,2.08615041,567.53,565.08,0.35393218]
[1743961345408,2.41040106,567.52,565.08,0.35393218]
[1743961345608,2.41040106,567.51,565.08,0.35393218]
[1743961345807,2.08615041,567.5,565.08,0.35393218]
[1743961346007,2.41040106,567.49,565.08,0.35393218]
[1743961346210,3.69433566,567.48,565.08,0.35393218]
[1743961346511,2.41040106,567.47,565.08,0.35393218]
[1743961346712,0.32425065,567.46,565.08,0.35393218]
[1743961347013,2.20530176,567.46,565.08,0.35393218]
[1743961347214,3.36969191,567.45,565.08,0.35393218]
[1743961347409,2.08575731,567.44,565.08,0.35393218]
[1743961347609,1.60822682,567.43,565.08,0.35393218]
[1743961347809,3.36969191,567.43,565.08,0.35393218]
[1743961348010,2.08575731,567.42,565.08,0.35393218]
[1743961348412,0.30714645,567.41,565.08,0.35393218]
[1743961348912,1.59108105,567.41,565.08,0.35393218]
[1743961349107,0.3242781,567.4,565.08,0.35393218]
[1743961349312,3.69397001,567.4,565.08,0.35393218]
[1743961349514,2.41003541,567.39,565.08,0.35393218]
[1743961349709,0.3242781,567.38,565.08,0.35393218]
[1743961350115,2.20532921,567.38,565.08,0.35393218]
[1743961350314,1.8129189,567.37,565.08,0.35393218]
[1743961350616,3.36969191,567.37,565.08,0.35393218]
[1743961350814,2.08575731,567.36,565.08,0.35393218]
[1743961351011,1.2839346,567.35,565.08,0.35393218]
[1743961351213,0.32435199,567.34,565.08,0.35393218]
[1743961351417,2.4101093,567.34,565.08,0.35393218]
[1743961351613,0.32435199,567.33,565.08,0.35393218]
[1743961351815,1.60828659,567.33,565.08,0.35393218]
[1743961352009,0.32435199,567.32,565.08,0.35393218]
[1743961352210,2.40257144,567.32,565.08,0.35393218]
[1743961352420,1.60828659,567.31,565.08,0.35393218]
[1743961352620,0.32435199,567.3,565.08,0.35393218]
[1743961352829,2.40257144,567.3,565.08,0.35393218]
[1743961353124,1.60828659,567.29,565.08,0.35393218]
[1743961353324,0.35256579,567.27,565.08,0.35393218]
[1743961353920,0.32435529,567.26,565.08,0.35393218]
[1743961354521,0.35257822,567.25,565.08,0.35393218]
[1743961354731,0.32435529,567.24,565.08,0.35393218]
[1743961355026,0.35259065,567.23,565.08,0.35393218]
[1743961355225,0.32435529,567.22,565.08,0.35393218]
[1743961355426,0.35259065,567.23,565.08,0.35393218]
[1743961355626,0.32439276,567.21,565.08,0.35393218]
[1743961355824,0.32439276,567.2,565.08,0.35393218]
[1743961356026,0.32439276,567.22,565.08,0.35393218]
[1743961356228,0.32440422,567.21,565.08,0.35393218]
[1743961356428,0.32440422,567.22,565.08,0.35393218]
[1743961356630,0.32440422,567.21,565.08,0.35393218]
[1743961356928,0.32440422,567.2,565.08,0.35393218]
[1743961357125,0.32440422,567.22,565.08,0.35393218]
[1743961357327,1.24840422,567.21,565.08,0.35393218]
[1743961357527,0.32440422,567.2,565.08,0.35393218]
[1743961358130,0.32440422,567.19,565.08,0.35393218]
[1743961358325,0.32440422,567.2,565.08,0.35393218]
[1743961360033,0.35262174,567.18,565.08,0.35393218]
[1743961360334,0.32440422,567.17,565.08,0.35393218]
[1743961362035,0.35262174,567.18,565.08,0.35393218]
[1743961362036,0.32440422,567.16,565.08,0.35393218]
[1743961362234,1.4723026,567.17,565.08,0.35393218]
[1743961362438,0.32451211,567.16,565.08,0.35393218]
[1743961362733,1.60844671,567.16,565.08,0.35393218]
[1743961362937,0.32451211,567.15,565.08,0.35393218]
[1743961363134,2.69418261,567.15,565.08,0.35393218]
[1743961363435,2.19976097,567.14,565.08,0.35393218]
[1743961363642,0.32451211,567.13,565.08,0.35393218]
[1743961364038,2.38683407,567.13,565.08,0.35393218]
[1743961364239,1.60844671,567.12,565.08,0.35393218]
[1743961364437,0.32451211,567.11,565.08,0.35393218]
[1743961364638,3.44783407,567.11,565.08,0.35393218]
[1743961364832,2.38683407,567.1,565.08,0.35393218]
[1743961365032,1.60844671,567.09,565.08,0.35393218]
[1743961365240,0.32451211,567.08,565.08,0.35393218]
[1743961365442,2.38683407,567.08,565.08,0.35393218]
[1743961365640,0.32451211,567.07,565.08,0.35393218]
[1743961365836,0.32451211,567.06,565.08,0.35393218]
[1743961366033,1.60844671,567.06,565.08,0.35393218]
[1743961366238,0.32451211,567.05,565.08,0.35393218]
[1743961366436,2.38683407,567.05,565.08,0.35393218]
[1743961366640,2.19828298,567.04,565.08,0.35393218]
[1743961366843,1.79566427,567.03,565.08,0.35393218]
[1743961367041,0.32465657,567.02,565.08,0.35393218]
[1743961367441,2.38550054,567.02,565.08,0.35393218]
[1743961367743,0.63205941,567.01,565.08,0.35393218]
[1743961368041,0.32465657,567.0,565.08,0.35393218]
[1743961368541,1.79566427,567.0,565.08,0.35393218]
[1743961368742,0.32465657,566.99,565.08,0.35393218]
[1743961368940,2.7549423,567.0,565.08,0.35393218]
[1743961369140,0.3246399,566.98,565.08,0.35393218]
[1743961369342,1.6085745,566.99,565.08,0.35393218]
[1743961369542,0.3246399,566.98,565.08,0.35393218]
[1743961370436,0.3246399,566.99,565.08,0.35393218]
[1743961370640,0.3246399,566.98,565.08,0.35393218]
[1743961370840,0.30737569,566.97,565.08,0.35393218]
[1743961371238,0.3246399,566.96,565.08,0.35393218]
[1743961371741,1.2839346,566.96,565.08,0.35393218]
[1743961372042,0.32471688,566.95,565.08,0.35393218]
[1743961372248,1.79126133,566.95,565.08,0.35393218]
[1743961372438,0.32471688,566.94,565.08,0.35393218]
[1743961372641,1.79126133,566.94,565.08,0.35393218]
[1743961372839,0.32471688,566.93,565.08,0.35393218]
[1743961373041,0.32471688,566.94,565.08,0.35393218]
[1743961373239,0.32471688,566.93,565.08,0.35393218]
[1743961373444,0.32471688,566.94,565.08,0.35393218]
[1743961373639,0.32471688,566.93,565.08,0.35393218]
[1743961373844,0.30743543,566.92,565.08,0.35393218]
[1743961374242,0.32473222,566.91,565.08,0.35393218]
[1743961374642,0.91416087,566.91,565.08,0.35393218]
[1743961374843,0.35280213,566.89,565.08,0.35393218]
[1743961375044,0.32473222,566.88,565.08,0.35393218]
[1743961375344,0.3528208,566.86,565.08,0.35393218]
[1743961375746,0.32469498,566.85,565.08,0.35393218]
[1743961375947,0.35283947,566.83,565.08,0.35393218]
[1743961376147,0.32469498,566.82,565.08,0.35393218]
[1743961376648,0.35285815,566.8,565.08,0.35393218]
[1743961376845,0.32469498,566.79,565.08,0.35393218]
[1743961378244,1.147,566.78,565.08,0.35393218]
[1743961378450,0.32469498,566.77,565.08,0.35393218]
[1743961378751,0.32469498,566.76,565.08,0.35393218]
[1743961378950,3.20246797,566.78,565.08,0.35393218]
[1743961379151,2.38031408,566.77,565.08,0.35393218]
[1743961379453,1.60878071,566.76,565.08,0.35393218]
[1743961379653,0.32484611,566.75,565.08,0.35393218]
[1743961380153,1.79204636,566.75,565.08,0.35393218]
[1743961380353,0.32484611,566.74,565.08,0.35393218]
[1743961380553,0.59045202,566.75,565.08,0.35393218]
[1743961380768,0.3248134,566.74,565.08,0.35393218]
[1743961381054,0.3248134,566.73,565.08,0.35393218]
[1743961381255,0.3248134,566.72,565.08,0.35393218]
[1743961381455,2.05947834,566.75,565.08,0.35393218]
[1743961381654,0.32473741,566.74,565.08,0.35393218]
[1743961381855,1.60867201,566.74,565.08,0.35393218]
[1743961382057,0.32472441,566.73,565.08,0.35393218]
[1743961382256,3.66813735,566.73,565.08,0.35393218]
[1743961382450,2.38420275,566.72,565.08,0.35393218]
[1743961382655,0.32472441,566.71,565.08,0.35393218]
[1743961382857,1.60865901,566.71,565.08,0.35393218]
[1743961383059,1.15372441,566.7,565.08,0.35393218]
[1743961383259,0.32472441,566.69,565.08,0.35393218]
[1743961383460,1.46893583,566.69,565.08,0.35393218]
[1743961383661,0.32468741,566.68,565.08,0.35393218]
[1743961384461,0.712,566.67,565.08,0.35393218]
[1743961384659,0.32468741,566.66,565.08,0.35393218]
[1743961385157,1.9959346,566.67,565.08,0.35393218]
[1743961385760,0.30737298,566.66,565.08,0.35393218]
[1743961385962,1.19937298,566.66,565.08,0.35393218]
[1743961386176,0.892,566.66,565.08,0.35393218]
[1743961388261,1.203,566.65,565.08,0.35393218]
[1743961389667,1.203,566.65,565.2,1.29512852]
[1743961390060,1.203,566.65,565.22,0.35384452]
[1743961390559,0.871,566.64,565.22,0.35384452]
[1743961394170,0.871,566.64,565.23,1.29512852]
[1743961395371,0.871,566.64,565.25,0.35382574]
[1743961396478,0.871,566.64,565.4,1.29512852]
[1743961396866,0.871,566.64,565.42,0.35371935]
[1743961398479,0.871,566.64,565.52,1.29512852]
[1743961398672,0.871,566.64,565.54,0.3536443]
[1743961399776,0.764,566.63,565.54,0.3536443]
[1743961401777,0.983,566.62,565.54,0.3536443]
[1743961404182,0.896,566.61,565.54,0.3536443]
[1743961407679,0.987,566.6,565.54,0.3536443]
[1743961409885,1.001,566.59,565.54,0.3536443]
[1743961413398,1.001,566.59,565.56,1.29512852]
[1743961413598,1.001,566.59,565.58,0.35361929]
[1743961419906,1.001,566.59,566.02,1.29512852]
[1743961420099,1.001,566.59,566.03,0.35333816]
[1743961430907,0.987,566.6,566.03,0.35333816]
[1743961438722,1.173,566.61,566.03,0.35333816]
[1743961439725,1.098,566.6,566.03,0.35333816]
[1743961440224,1.098,566.6,565.82,1.29512852]
[1743961441934,0.793,566.59,565.82,1.29512852]
[1743961442125,0.793,566.59,565.66,0.30727527]
[1743961442436,0.793,566.59,565.67,0.35356303]
[1743961444035,0.793,566.59,565.67,1.64869155]
[1743961446335,0.793,566.59,565.67,0.35356303]
[1743961449037,1.181,566.58,565.67,0.35356303]
[1743961450030,2.45583127,566.58,565.67,0.35356303]
[1743961450643,2.11342776,566.57,565.67,0.35356303]
[1743961451037,1.50746488,566.57,565.67,0.35356303]
[1743961451436,2.78229615,566.57,565.67,0.35356303]
[1743961451835,1.27483127,566.57,565.67,0.35356303]
[1743961452338,1.181,566.58,565.67,0.35356303]
[1743961453139,2.287,566.58,565.67,0.35356303]
[1743961454943,1.27468144,566.57,565.67,0.35356303]
[1743961456143,2.287,566.58,565.67,0.35356303]
[1743961456842,3.104,566.58,565.67,0.35356303]
[1743961457847,1.27544448,566.57,565.67,0.35356303]
[1743961458038,3.3899939,566.57,565.67,0.35356303]
[1743961458244,2.11454942,566.56,565.67,0.35356303]
[1743961458540,1.50857924,566.55,565.67,0.35356303]
[1743961458745,0.35302008,566.54,565.16,1.29512852]
[1743961458937,0.35302008,566.54,565.18,0.35386956]
[1743961459140,1.003,566.53,565.18,0.35386956]
[1743961459346,3.1178452,566.53,565.18,0.35386956]
[1743961459647,1.88171044,566.52,565.18,0.35386956]
[1743961459848,1.50857924,566.51,565.18,0.35386956]
[1743961460043,1.50857924,566.5,565.18,0.35386956]
[1743961460346,1.50857924,566.49,565.19,0.3074721]
[1743961460537,0.35305747,566.48,565.2,0.35385704]
[1743961460742,1.27544448,566.47,565.2,0.35385704]
[1743961460940,0.35306994,566.46,565.2,0.35385704]
[1743961461145,1.60020698,566.45,565.2,0.35385704]
[1743961461339,1.27544448,566.44,565.2,0.35385704]
[1743961461843,1.88171044,566.44,565.2,0.35385704]
[1743961462051,2.11319579,566.43,565.2,0.35385704]
[1743961462345,1.27544448,566.42,565.2,0.35385704]
[1743961462544,3.38864027,566.42,565.2,0.35385704]
[1743961462742,2.11319579,566.41,565.2,0.35385704]
[1743961462940,1.27544448,566.4,565.2,0.35385704]
[1743961463540,0.852,566.39,565.2,0.35385704]
[1743961472576,1.20511357,566.39,565.2,0.35385704]
[1743961473052,0.30747889,566.38,565.2,0.35385704]
[1743961474050,1.57824702,566.38,565.2,0.35385704]
[1743961474251,3.68512705,566.38,565.2,0.35385704]
[1743961474451,2.10688003,566.37,565.2,0.35385704]
[1743961474752,0.35313228,566.36,565.2,0.35385704]
[1743961475047,2.46001231,566.36,565.2,0.35385704]
[1743961475252,1.27076813,566.35,565.2,0.35385704]
[1743961475847,0.35313228,566.36,565.2,0.35385704]
[1743961477956,1.27076813,566.51,565.2,0.35385704]
[1743961478150,1.27076813,566.57,565.2,0.35385704]
[1743961478355,0.838,566.5,565.2,0.35385704]
[1743961479855,0.799,566.49,565.2,0.35385704]
[1743961481050,0.819,566.48,565.2,0.35385704]
[1743961481959,0.962,566.47,565.2,0.35385704]
[1743961483159,0.962,566.47,565.23,1.29512852]
[1743961483551,0.962,566.47,565.25,0.35382574]
[1743961485459,0.957,566.46,565.25,0.35382574]
[1743961488561,0.874,566.45,565.25,0.35382574]
[1743961489961,0.874,566.45,565.28,1.29512852]
[1743961491160,0.874,566.45,565.3,0.35379444]
[1743961494870,0.874,566.45,565.52,1.29512852]
[1743961495372,0.874,566.45,565.54,0.3536443]
[1743961500065,1.786,566.45,565.54,0.3536443]
[1743961500967,1.786,566.45,565.66,1.29512852]
[1743961503873,1.786,566.45,565.54,0.3536443]
[1743961505770,2.807,566.45,565.54,0.3536443]
[1743961506469,3.87,566.45,565.54,0.3536443]
[1743961509173,1.27879449,566.44,565.54,0.3536443]
[1743961509576,3.87,566.45,565.54,0.3536443]
[1743961511578,4.754,566.45,565.54,0.3536443]
[1743961511778,1.51297727,566.44,565.54,0.3536443]
[1743961512073,2.12107676,566.44,565.54,0.3536443]
[1743961512280,2.12107676,566.44,565.55,1.29512852]
[1743961512479,1.27911347,566.43,565.55,1.29512852]
[1743961512772,3.40019023,566.43,565.55,1.29512852]
[1743961512973,2.12107676,566.42,565.55,1.29512852]
[1743961513778,1.27911347,566.41,565.55,1.29512852]
[1743961513974,3.40019023,566.41,565.55,1.29512852]
[1743961514175,2.12107676,566.4,565.55,1.29512852]
[1743961514475,1.27911347,566.39,565.55,1.29512852]